Cogmind - Beta 16 @@@ ROGUE MODE // 2025.11.11 @ 06:53:23 Player: shapeshifter Result: Self-destructed Performance ------------- Evolutions (4) 2000 Regions Visited (6) 1200 Robots Destroyed (1) 5 Value Destroyed (7) 7 Prototype IDs (0) 0 Alien Tech Used (0) 0 Bonus (1825) 1825 TOTAL SCORE: 5037 Bonus ------- Pacifist 1325 Entered DSFs 500 Cogmind --------- Core Integrity 495/850 Matter 300/300 Energy 100/100 System Corruption 0% Temperature Cool (12) Movement Flying (35) Location -6/Factory Parts ------- > --- POWER (2) -------- (None) > --- PROPULSION (6) --- Surge Thruster > --- UTILITY (5) ------ Improved Signal Interpreter System Shield > --- WEAPON (2) ------- Spear > --- INVENTORY (5) ---- Ion Engine Light Ion Engine Micro Nuclear Core Cooling System Advanced Weight Redist. System Peak State ------------ > --- POWER ------------ Improved Ion Engine > --- PROPULSION ------- Surge Thruster Surge Thruster Surge Thruster Surge Thruster > --- UTILITY ---------- Improved Signal Interpreter Improved Terrain Scanner System Shield > --- WEAPON ----------- Spear > --- INVENTORY -------- Ion Engine Light Ion Engine Micro Nuclear Core Cooling System Advanced Weight Redist. System [Rating: 28] Favorites ----------- Power Improved Ion Engine Engine Improved Ion Engine Propulsion Surge Thruster Flight Unit Surge Thruster Utility Improved Signal Interpreter Device Structural Scanner Processor Improved Signal Interpreter Hackware System Shield Weapon Spear Piercing Weapon Spear Build | -11 -10 -9 -8 -7 -7 -6 ------- Run | Yrd Mat Mat Mat Fac DSF Fac Slots Evolved 8 | . . 2 2 2 . 2 Power 1 | . . . . . . 1 Propulsion 4 | . . 2 1 . . 1 Utility 3 | . . . 1 2 . . Weapon . | . . . . . . . Parts Attached 13 | . . 1 1 1 8 2 Power 1 | . . . . . 1 . Engine 1 | . . . . . 1 . Core . | . . . . . . . Reactor . | . . . . . . . Propulsion 7 | . . 1 . . 6 . Treads . | . . . . . . . Leg . | . . . . . . . Wheel . | . . . . . . . Hover . | . . . . . . . Flight 7 | . . 1 . . 6 . Utility 4 | . . . 1 1 . 2 Device 2 | . . . 1 . . 1 Storage . | . . . . . . . Processor 1 | . . . . 1 . . Hackware 1 | . . . . . . 1 Protection . | . . . . . . . Artifact . | . . . . . . . Weapon 1 | . . . . . 1 . Energy Gun . | . . . . . . . Energy Cannon . | . . . . . . . Ballistic Gun . | . . . . . . . Ballistic Cannon . | . . . . . . . Launcher . | . . . . . . . Special Weapon . | . . . . . . . Impact Weapon . | . . . . . . . Slashing Weapon . | . . . . . . . Piercing Weapon 1 | . . . . . 1 . Special Melee Weapon . | . . . . . . . Unidentified Prototypes . | . . . . . . . Corrupted Parts 1 | . . . . . 1 . System Corruption 6 | . . . . . 6 . Parts Lost 9 | . . . . . 4 5 Power 1 | . . . . . . 1 Propulsion 6 | . . . . . 3 3 Utility 2 | . . . . . 1 1 Weapon . | . . . . . . . Highest Loss Streak 5 | . . . . . 4 5 To Critical Strikes . | . . . . . . . Average Backups 3 | 1 2 2 3 4 5 4 Power 2 | 1 2 2 2 3 2 2 Propulsion . | . . . . . . . Utility 1 | . . . . 1 2 2 Weapon . | . . . . . . . Tool/Special . | . . . . . . . Unused Backups 5 | . . . . . . 5 Power 3 | . . . . . . 3 Propulsion . | . . . . . . . Utility 2 | . . . . . . 2 Weapon . | . . . . . . . Tool/Special . | . . . . . . . Average Slot Usage (%) 19 | . . 3 18 19 28 57 Engine 1 | . . . . . 1 6 Flight 9 | . . 3 9 7 12 26 Device 4 | . . . 9 7 5 6 Processor 2 | . . . . 3 7 6 Peak Build Rating 28 | . . 2 3 7 22 28 Average Rating 6 | . . . 3 5 9 26 On Entrance 4 | . . . 2 3 7 22 Avg Prop Armor Cover (%) . | . . . . . . . Naked Turns 125 | . 74 51 . . . . Heaviest Build 10 | . . . 1 1 9 10 Greatest Support 15 | 3 3 4 4 4 15 12 Greatest Overweight (x) . | . . . . . . . Average Overweight (x) . | . . . . . . . Largest Inventory Capacity 5 | 5 5 5 5 5 5 5 Average Capacity 5 | 5 5 5 5 5 5 5 Most Carried 5 | 2 2 3 4 5 5 5 Average Carried 3 | 1 2 2 3 4 4 4 Final Capacity 5 | 5 5 5 5 5 5 5 Final Carried 5 | 2 2 3 4 5 5 5 Class Distribution -------------------- 80% | Mutant 19% | Sprinter Dominant Class ---------------- Mutant | -10/Materials Mutant | -9/Materials Mutant | -8/Materials Mutant | -7/Factory Mutant | -7/DSF Sprinter | -6/Factory Resources | -11 -10 -9 -8 -7 -7 -6 ----------- Run | Yrd Mat Mat Mat Fac DSF Fac Matter Collected 304 | 143 . . . . . 161 Remotely . | . . . . . . . Salvage Created 13 | . . . . . . 13 Parts 2 | . . . . . . 2 Haulers Intercepted . | . . . . . . . Recyclers Shooed . | . . . . . . . Parts Field Recycled . | . . . . . . . Retrieved Matter . | . . . . . . . Parts Self-Destructed . | . . . . . . . Prevented . | . . . . . . . Parts Restored . | . . . . . . . Kills | -11 -10 -9 -8 -7 -7 -6 ------- Run | Yrd Mat Mat Mat Fac DSF Fac Combat Hostiles Destroyed . | . . . . . . . Classes Destroyed 1 | . . . . . . 1 Tunneler 1 | . . . . . . 1 Best Kill Streak 1 | . . . . . . 1 Combat Bots Only . | . . . . . . . Max Kills in Single Turn 1 | . . . . . . 1 Gunslinging . | . . . . . . . Exploded . | . . . . . . . Melee . | . . . . . . . Uniques/NPCs Destroyed . | . . . . . . . Combat | -11 -10 -9 -8 -7 -7 -6 -------- Run | Yrd Mat Mat Mat Fac DSF Fac Hostile Shots Fired 124 | . 32 43 1 1 21 26 Missed 60 | . 17 21 . . 8 14 Hits 64 | . 15 22 1 1 13 12 Melee 7 | . . . . . 7 . Projectile 57 | . 15 22 1 1 6 12 AOE 5 | . . . . . 1 4 Critical Strikes 5 | . 1 1 . . 3 . Damage Taken 1323 | . 148 213 18 15 364 565 Core 911 | . 148 207 18 15 168 355 Absorbed by Shields 12 | . . . . . 12 . Core Remaining (%) 71 | 100 40 48 96 . 73 . Volleys Fired . | . . . . . . . Largest . | . . . . . . . Hottest . | . . . . . . . Shots Fired . | . . . . . . . Gun . | . . . . . . . Cannon . | . . . . . . . Launcher . | . . . . . . . Special . | . . . . . . . Kinetic . | . . . . . . . Thermal . | . . . . . . . Explosive . | . . . . . . . Electromagnetic . | . . . . . . . Robot Hit Streak . | . . . . . . . Robot Miss Streak . | . . . . . . . Penetration Max . | . . . . . . . Secondary Targets . | . . . . . . . Shots Hit Robots 1 | . . . . . . 1 Core Hits . | . . . . . . . Critical Kills . | . . . . . . . Critical Parts Destroyed . | . . . . . . . Critical Strikes 1 | . . . . . . 1 Impale 1 | . . . . . . 1 Melee Attacks 1 | . . . . . . 1 Impact . | . . . . . . . Slashing . | . . . . . . . Piercing 1 | . . . . . . 1 Sneak Attacks 1 | . . . . . . 1 Combat Hostiles . | . . . . . . . Follow-up Attacks . | . . . . . . . Damage Inflicted 64 | . . 4 . . . 60 Guns . | . . . . . . . Cannons . | . . . . . . . Explosions . | . . . . . . . Melee 60 | . . . . . . 60 Ramming 4 | . . 4 . . . . Kinetic . | . . . . . . . Thermal . | . . . . . . . Explosive . | . . . . . . . Electromagnetic . | . . . . . . . Impact . | . . . . . . . Slashing . | . . . . . . . Piercing 60 | . . . . . . 60 Highest Corruption 6 | . 2 . . . 6 . Average Corruption 3 | . 2 . . . 6 . Corruption Purged . | . . . . . . . Corruption Blocked . | . . . . . . . Effects 1 | . . . . . 1 . Alerts 1 | . . . . . 1 . Overload Shots . | . . . . . . . Overflow Damage 80 | . . . . . . 80 Projectiles . | . . . . . . . Explosions . | . . . . . . . Melee 80 | . . . . . . 80 Knockbacks . | . . . . . . . Impact . | . . . . . . . Kinetic . | . . . . . . . Secondary . | . . . . . . . Self-Inflicted Damage 2 | . . 2 . . . . Shots . | . . . . . . . Rammed 1 | . . 1 . . . . Targets Rammed 1 | . . 1 . . . . Kicked . | . . . . . . . Crushed . | . . . . . . . Highest Temperature 21 | . 8 . . . . 21 Average Temperature 14 | . 8 . . . . 21 Received Heat Transfer 171 | . 57 18 9 9 9 69 Siege Activations . | . . . . . . . Martial Activations . | . . . . . . . Shielding Activations . | . . . . . . . Robots Disrupted . | . . . . . . . Combat Hostiles . | . . . . . . . Robots Corrupted . | . . . . . . . Combat Hostiles . | . . . . . . . Parts Fried . | . . . . . . . Impact Corruptions . | . . . . . . . Robots Melted . | . . . . . . . Combat Hostiles . | . . . . . . . Parts Melted . | . . . . . . . Heat Transferred . | . . . . . . . Parts Sabotaged . | . . . . . . . Parts Stolen . | . . . . . . . Parts Stripped . | . . . . . . . Power Chain Reactions . | . . . . . . . Alert | -11 -10 -9 -8 -7 -7 -6 ------- Run | Yrd Mat Mat Mat Fac DSF Fac Maximum Alert Level . | . . . . . . . Low Security (%) 100 | 100 100 100 100 100 100 100 Level 1 . | . . . . . . . Level 2 . | . . . . . . . Level 3 . | . . . . . . . Level 4 . | . . . . . . . Level 5 . | . . . . . . . High Security . | . . . . . . . Max Security . | . . . . . . . Peak Influence 100 | . 20 80 84 33 30 100 Initial 33 | . . 8 33 33 . 4 Average 14 | . 3 11 46 20 5 20 Influence Increases 366 | . 30 110 61 5 50 110 Destroy 0b10 Robot/NC 5 | . . . . . . 5 Trap Triggered on 0b10 50 | . . . . . 50 . Successful Hack 11 | . . 5 1 5 . . Partial Spotted 30 | . . 15 . . . 15 Lose Combat Pursuer 270 | . 30 90 60 . . 90 Influence Decreases 316 | . 10 50 67 79 40 70 Entered New Map 106 | . . 12 47 41 . 6 Time Decay 102 | . 10 38 20 20 . 14 Lost Part 90 | . . . . . 40 50 Purge Threat 18 | . . . . 18 . . Squads Dispatched 3 | . . 1 . . 2 . Investigation . | . . . . . . . Extermination . | . . . . . . . Reinforcement 3 | . . 1 . . 2 . Assault . | . . . . . . . Garrison . | . . . . . . . Intercept . | . . . . . . . Searches Triggered . | . . . . . . . Construction Impeded . | . . . . . . . Haulers Reinforced . | . . . . . . . Active Scanning Responses . | . . . . . . . Cargo Convoy Interrupts . | . . . . . . . Stealth | -11 -10 -9 -8 -7 -7 -6 --------- Run | Yrd Mat Mat Mat Fac DSF Fac Distress Signals 2 | . 1 . 1 . . . Communications Jammed . | . . . . . . . Distress Signals . | . . . . . . . Times Spotted 54 | . 9 12 5 1 9 18 Peak Tracking Total 11 | . 6 11 5 4 8 11 Tactical Retreats 4 | . 1 1 1 . . 1 Traps | -11 -10 -9 -8 -7 -7 -6 ------- Run | Yrd Mat Mat Mat Fac DSF Fac Traps Triggered 3 | . 1 . . . 2 . Indirectly . | . . . . . . . Trap Hack Attempts . | . . . . . . . Triggered . | . . . . . . . Disarmed . | . . . . . . . Reprogrammed . | . . . . . . . Reused 5 | . . . . . 5 . Traps Extracted . | . . . . . . . Installed 10 | . . . . . 10 . Triggered 5 | . . . . . 5 . Machines | -11 -10 -9 -8 -7 -7 -6 ---------- Run | Yrd Mat Mat Mat Fac DSF Fac Machines Disabled . | . . . . . . . Max in Single Turn . | . . . . . . . Machines Repaired . | . . . . . . . Machines Dismantled . | . . . . . . . Machines Sabotaged . | . . . . . . . Overloaded Fab Kills . | . . . . . . . Hacking | -11 -10 -9 -8 -7 -7 -6 --------- Run | Yrd Mat Mat Mat Fac DSF Fac Machines Accessed 7 | . . 1 1 5 . . Terminals 6 | . . 1 1 4 . . Fabricators . | . . . . . . . Repair Stations . | . . . . . . . Recycling Units 1 | . . . . 1 . . Scanalyzers . | . . . . . . . Garrison Access . | . . . . . . . Total Hacks 18 | . . 2 3 13 . . Successful 8 | . . 1 2 5 . . Failed 10 | . . 1 1 8 . . Catastrophic 1 | . . . . 1 . . Database Lockouts . | . . . . . . . Manual 6 | . . . 1 5 . . Terminals 15 | . . 2 3 10 . . Fabricators . | . . . . . . . Repair Stations . | . . . . . . . Recycling Units 3 | . . . . 3 . . Scanalyzers . | . . . . . . . Garrison Access . | . . . . . . . Terminal Hacks 6 | . . 1 2 3 . . Record 1 | . . . 1 . . . Open DSF 1 | . . . . 1 . . Unreport Threat 1 | . . . . 1 . . Registered Components 1 | . . . 1 . . . Zone Layout 2 | . . 1 . 1 . . Fabricator Hacks . | . . . . . . . Repair Station Hacks . | . . . . . . . Recycling Unit Hacks 1 | . . . . 1 . . Retrieve Components 1 | . . . . 1 . . Scanalyzer . | . . . . . . . Garrison Access Hacks . | . . . . . . . Unauthorized Hacks 1 | . . . . 1 . . Terminals 1 | . . . . 1 . . Skim 1 | . . . . 1 . . Fabricators . | . . . . . . . Repair Stations . | . . . . . . . Recycling Units . | . . . . . . . Scanalyzers . | . . . . . . . Garrison Access . | . . . . . . . Data Cores Recovered . | . . . . . . . Used . | . . . . . . . Hacking Detections 6 | . . . 1 5 . . Full Trace Events . | . . . . . . . Feedback Events . | . . . . . . . Feedback Blocked . | . . . . . . . Robot Schematics Acquired . | . . . . . . . Robots Built . | . . . . . . . Authchips . | . . . . . . . Time . | . . . . . . . Total Robot Build Rating . | . . . . . . . Part Schematics Acquired . | . . . . . . . Parts Built . | . . . . . . . Authchips . | . . . . . . . Time . | . . . . . . . Total Part Build Rating . | . . . . . . . Part Studies Acquired . | . . . . . . . Parts Repaired . | . . . . . . . Time . | . . . . . . . Parts Recycled . | . . . . . . . Recycled Matter . | . . . . . . . Retrieved Matter . | . . . . . . . Retrieved Components 2 | . . . . 2 . . Parts Scanalyzed . | . . . . . . . Part Schematics Acquired . | . . . . . . . Parts Damaged . | . . . . . . . Bothacking | -11 -10 -9 -8 -7 -7 -6 ------------ Run | Yrd Mat Mat Mat Fac DSF Fac Used RIF Installer . | . . . . . . . Robots Hacked . | . . . . . . . Non-combat . | . . . . . . . Combat . | . . . . . . . Robot Hacks Applied . | . . . . . . . Relay Couplers Released . | . . . . . . . Fabnet Peak Effective % . | . . . . . . . Robots Rewired . | . . . . . . . Allies Hacked . | . . . . . . . Hacks Repelled . | . . . . . . . Allies | -11 -10 -9 -8 -7 -7 -6 -------- Run | Yrd Mat Mat Mat Fac DSF Fac Total Allies . | . . . . . . . Largest Group . | . . . . . . . Highest-Rated Group . | . . . . . . . Highest-Rated Ally . | . . . . . . . Total Orders . | . . . . . . . Ally Attacks . | . . . . . . . Total Damage . | . . . . . . . Kills . | . . . . . . . Allies Corrupted . | . . . . . . . Allies Melted . | . . . . . . . Intel | -11 -10 -9 -8 -7 -7 -6 ------- Run | Yrd Mat Mat Mat Fac DSF Fac Active Infowar (turns) 245 | . . . 57 57 84 47 Terrain 47 | . . . . . . 47 Structural 198 | . . . 57 57 84 . Robot Analysis Total . | . . . . . . . Derelict Logs Recovered . | . . . . . . . Drone Launches . | . . . . . . . Drone Recoveries . | . . . . . . . Exploration | -11 -10 -9 -8 -7 -7 -6 ------------- Run | Yrd Mat Mat Mat Fac DSF Fac Turns Passed 455 | 16 74 84 57 57 117 50 Spaces Moved 973 | 28 147 187 154 155 149 153 Core 271 | 28 147 96 . . . . Treads . | . . . . . . . Legs . | . . . . . . . Wheels . | . . . . . . . Hover . | . . . . . . . Flight 702 | . . 91 154 155 149 153 Fastest Speed 23 | 50 50 35 35 35 23 26 Average Speed 37 | 50 50 42 35 35 31 26 Slowest Speed 50 | 50 50 50 35 35 35 26 Overloaded Moves . | . . . . . . . Propulsion Burnouts . | . . . . . . . Robots Hopped 4 | . . 2 1 . 1 . Potential Cave-ins . | . . . . . . . Cave-ins Triggered . | . . . . . . . Exploration Rate (%) 30 | 3 52 36 21 7 84 10 Regions Visited 6 Branch Regions . Pre-discovered Areas . | . . . . . . . Known Exits Taken 1 | . . . . 1 . . Unknown Exits Taken 4 | 1 1 1 1 . . . Scrap Searched . | . . . . . . . Spaces Dug . | . . . . . . . Terrain Destroyed . | . . . . . . . Melee . | . . . . . . . Projectile . | . . . . . . . AOE . | . . . . . . . Terrain Rammed . | . . . . . . . Walls Destroyed . | . . . . . . . Machines Disabled . | . . . . . . . Actions | -11 -10 -9 -8 -7 -7 -6 --------- Run | Yrd Mat Mat Mat Fac DSF Fac Total 1048 | 29 146 188 155 156 214 160 Wait 33 | . . . . . 30 3 Move 959 | 27 146 182 151 154 146 153 Hop 4 | . . 2 1 . 1 . Pick Up 10 | 2 . 2 2 1 2 1 Fast Attach 9 | . . . . 1 7 1 Attach 5 | . . 1 1 . 2 1 Detach . | . . . . . . . Swap . | . . . . . . . Drop . | . . . . . . . Fire . | . . . . . . . Melee 1 | . . . . . . 1 Ram 1 | . . 1 . . . . Kick . | . . . . . . . Crush . | . . . . . . . Escape Stasis 16 | . . . . . 16 . Rewire . | . . . . . . . Trap 10 | . . . . . 10 . Miscellaneous . | . . . . . . . Route ------- -11/Scrapyard -10/Materials (discovered 2 exits: *Mat / [*Min]) -9/Materials (discovered 2 exits: *Mat / [*Min]) -8/Materials -7/Factory -7/DSF -6/Factory History --------- Turn | Location | Event 9 | -11/Scrapyard | Discovered new exit (range 16) 17 | -11/Scrapyard | Entered Materials 57 | -10/Materials | Discovered new exit (range 14) 83 | -10/Materials | Core integrity fell below 50% 89 | -10/Materials | Discovered new exit (range 4) 91 | -10/Materials | Entered another Materials area 91 | -9/Materials | Evolved 2 slots: Propulsion x2 147 | -9/Materials | Discovered new exit (range 12) 164 | -9/Materials | Core integrity fell below 50% 169 | -9/Materials | Discovered new exit (range 16) 175 | -9/Materials | Entered another Materials area 175 | -8/Materials | Evolved 2 slots: Propulsion x1, Utility x1 230 | -8/Materials | Discovered new exit (range 7) 232 | -8/Materials | Entered Factory 232 | -7/Factory | Evolved 2 slots: Utility x2 289 | -7/Factory | Identified exit to DSF 289 | -7/Factory | Entered DSF 311 | -7/DSF | Build established: Mutant 321 | -7/DSF | Additional patrols routed to DSF 402 | -7/DSF | Discovered new exit (range 15) 406 | -7/DSF | Identified exit to Factory 406 | -7/DSF | Entered Factory 406 | -6/Factory | Evolved 2 slots: Power x1, Propulsion x1 428 | -6/Factory | Lost 4 parts (3n1u) 453 | -6/Factory | Spotted B-75 Beast 456 | -6/Factory | Self-destructed Last Messages --------------- 00453_ Fusion Modulator explodes. 00453_ Imp. Terrain Scanner destroyed. 00453_ Surge Thruster destroyed. 00453_ Fusion Modulator explodes. 00453_ U-05 Engineer destroyed. 00453_ Surge Thruster destroyed. 00453_ S-27 Virus destroyed. 00453_ Fusion Modulator explodes. 00453_ S-27 Virus destroyed. 00453_ Fusion Modulator explodes. 00453_ S-27 Virus destroyed. 00453_ T-07 Excavator destroyed. 00453_ U-05 Engineer destroyed. 00453_ G-50 Soldier destroyed. 00453_ Fusion Modulator explodes. 00453_ S-27 Virus destroyed. 00453_ K-01 Serf destroyed. 00456_ Surge Thruster destroyed. 00456_ S-27 Virus destroyed. 00456_ Knocked back. Map ----- +----------------------------------------------------+ | ?????????????????????????????????????????????????? | | ?????????????????????????????????????????????????? | | ?????????????????????????????????????????????????? | | ?????????????????????????????????????????????????? | | ?????????????????????????????????????????????????? | | ?????????????????????????????????????????????????? | | ?????????????????????????????????????????????????? | | ?????????????????????????????????????????????????? | | ?????????????????????????????????????????????????? | | ?????????????????????????????????????????????????? | | ???????????????????????????? ???????????????????? | | ????????????????????#?????? ????????????????? | | ????????????????????# ????? !!??????????????? | | ??????????????####### ????? ????????????? | | ????????????? ####? ????????????? | | ????????????? ;BB;# ! ???????????? | | ???????????? ;BB;;;;;;;;;; ########???? | | ???????????? #???? | | ???????????? ##??? | | ???????????+ A +??? | | ???????????# "" #???? | | ???????????# "" #???? | | ???????????# !] " #???? | | ???????????# !] ##### | | ???????????+ ]] | | ?????????????### =*= @ s% | | ???????????????# ! % %= | | ???????????????# %= "" | | ???????????????# = """ | | ???????????????# ;; ;;;;########## | | ???????????????# # ?????????? | | ???????????? # """# ###??????????" | | ???????????# + """#?##???????????"" | | ???????????# # """#??????????????"" | | ???????????# "Y" ?? ?????????????? | | ???????????# """ ?? ""??????????????? | | ???????????? ######?? ] ""???????????????"" | | ???????????? ???????? "?????????????????? | | ????????????? ????????? ????????????????? | | ????????????? ??????????#####????????#??????????# | | ?????????????????????????????????????????????????? | | ?????????????????????????????????????????????????? | | ?????????????????????????????????????????????????? | | ?????????????????????????????????????????????????? | | ?????????????????????????????????????????????????? | | ?????????????????????????????????????????????????? | | ?????????????????????????????????????????????????? | | ?????????????????????????????????????????????????? | | ?????????????????????????????????????????????????? | | ?????????????????????????????????????????????????? | +----------------------------------------------------+ Best States ------------- Heat Dissipation 37 Energy Generation 12 Energy Capacity 265 Matter Stores 273 Matter Capacity 300 Sight Range 16 Terrain Scan Range 16 Terrain Scan Density 10 Evasion (%) 64 Defensive Hacking 10 Item Schematics ----------------- None Robot Schematics ------------------ None Fabricated ------------ Nothing Repaired ---------- Nothing Studied --------- None Alien Tech Used ----------------- None Achievements -------------- None Challenges ------------ None Game ------ Seed ScanCountertargetingJammer Manual? 0 Play Time 00:08:03 Cumulative 489.2 hours Start 2025.11.11 @ 06:46:11 End 2025.11.11 @ 06:53:23 Sessions 1 Manual Loads 0 Difficulty Rogue Special Mode None Game No. 652 Rogue 652 Adventurer 0 Explorer 0 Win Type - Total 15 Types 7/0/2/2/1/0/2/1/0/0 Lore% 90 Gallery% 85 Achievement% 65 Wizard Run 0 Options --------- Layout 0 ASCII 0 Keyboard 0 Movement Mouse Keybinds 0 Fullscreen 1 Font 24/Terminus Map View 76x50 Zoom Use 0% Tactical HUD 1 Map Filters NONE Filters NONE Steam 1 RUN: d287eae4-eeae-4bab-81f4-323423be9f7c